bitfinex-derivatives/quotes_SOLF0:USTF0_20250212
["timestamp","ask_amount","ask_price","bid_price","bid_amount"]
[1739333038455,0.03846883,194.71,194.68,0.03625264]
[1739333038661,0.03846883,194.71,194.61,14.23985959]
[1739333038856,5.1376,194.69,194.68,0.03781615]
[1739333039058,0.03846883,194.71,194.61,14.23985959]
[1739333039361,14.23985959,194.73,194.67,0.03523449]
[1739333039661,1.5245,194.74,194.67,0.03523449]
[1739333039862,0.03593645,194.72,194.67,0.03523449]
[1739333040662,5.1376,194.69,194.67,0.03523449]
[1739333040861,0.03593645,194.72,194.67,0.03523449]
[1739333041459,12.16593645,194.72,194.67,0.03523449]
[1739333041858,1.623,194.71,194.61,5.1396]
[1739333042056,24.42872153,194.71,194.56,22.80572153]
[1739333042261,5.139,194.64,194.58,5.1403]
[1739333042957,24.42872153,194.71,194.58,5.1403]
[1739333043157,5.1395,194.62,194.59,0.03910238]
[1739333043558,5.1397,194.61,194.56,5.1409]
[1739333043753,0.03453638,194.62,194.59,0.03819016]
[1739333043950,0.03453638,194.62,194.51,7.09071094]
[1739333044165,0.03453638,194.62,194.56,0.03622005]
[1739333044761,5.1405,194.59,194.56,0.03622005]
[1739333045162,0.03453638,194.62,194.56,0.03622005]
[1739333045366,5.1408,194.57,194.56,0.03622005]
[1739333045560,0.03453638,194.62,194.47,124.48572153]
[1739333045761,198.1212,194.64,194.47,124.48572153]
[1739333045954,5.1411,194.56,194.47,124.48572153]
[1739333046160,22.80572153,194.62,194.44,25.75872153]
[1739333046962,0.0389802,194.55,194.51,0.03726162]
[1739333047360,5.1418,194.54,194.51,0.03726162]
[1739333047564,0.0389802,194.55,194.51,0.03726162]
[1739333048465,5.142,194.53,194.51,0.03726162]
[1739333048667,0.0389802,194.55,194.51,0.03726162]
[1739333050662,10.1389802,194.55,194.51,0.03726162]
[1739333051265,10.1389802,194.55,194.53,5.1418]
[1739333051867,10.1389802,194.55,194.54,5.1416]
[1739333052766,10.1389802,194.55,194.51,0.03726162]
[1739333054571,10.1389802,194.55,194.54,5.1416]
[1739333055269,10.1389802,194.55,194.51,0.03726162]
[1739333056565,10.1389802,194.55,194.51,5.17936162]
[1739333056764,10.1389802,194.55,194.51,0.03726162]
[1739333058477,10.1389802,194.55,194.54,5.1416]
[1739333059164,1.5046,194.62,194.57,5.1405]
[1739333059670,3.1212,194.64,194.59,5.14]
[1739333059871,3.1212,194.64,194.55,14.26456557]
[1739333060172,0.0357516,194.61,194.58,14.29872582]
[1739333060366,0.0357516,194.61,194.6,5.14]
[1739333060567,0.03257767,194.61,194.58,14.29774606]
[1739333060970,0.03257767,194.61,194.6,5.14]
[1739333061574,0.03257767,194.61,194.59,5.1402]
[1739333061773,0.03257767,194.61,194.58,0.03318049]
[1739333064673,5.1403,194.59,194.58,0.03318049]
[1739333064875,0.03257767,194.61,194.58,0.03318049]
[1739333065468,5.17237767,194.61,194.58,0.03318049]
[1739333066380,0.03257767,194.61,194.58,0.03318049]
[1739333066572,5.1401,194.6,194.58,0.03318049]
[1739333067275,5.1403,194.59,194.58,0.03318049]
[1739333067478,0.03257767,194.61,194.58,0.03318049]
[1739333067868,5.17247767,194.61,194.58,0.03318049]
[1739333068680,0.03257767,194.61,194.58,0.03318049]
[1739333069873,11.69,194.66,194.59,22.82935896]
[1739333070573,11.69,194.66,194.64,5.1388]
[1739333070978,6.7418,194.69,194.64,5.1388]
[1739333071178,0.03476325,194.67,194.64,5.1388]
[1739333071375,0.03476325,194.67,194.65,5.1386]
[1739333071873,0.03476325,194.67,194.63,0.03420904]
[1739333072679,5.1387,194.66,194.63,0.03420904]
[1739333073377,0.03476325,194.67,194.63,0.03420904]
[1739333075873,0.03476325,194.67,194.63,5.17320904]
[1739333076080,0.03476325,194.67,194.63,0.03420904]
[1739333076885,0.03476325,194.67,194.64,5.1387]
[1739333077874,5.1385,194.66,194.63,0.03420904]
[1739333078084,0.03476325,194.67,194.63,0.03420904]
[1739333079081,5.1389,194.64,194.63,0.03420904]
[1739333079782,0.03476325,194.67,194.52,25.23615896]
[1739333079783,5.14,194.6,194.56,5.1408]
[1739333080283,16.64,194.6,194.56,5.1408]
[1739333080486,11.5,194.6,194.52,25.23615896]
[1739333080887,11.5,194.6,194.54,0.03832408]
[1739333080888,0.03484451,194.58,194.54,0.03832408]
[1739333081088,0.03484451,194.58,194.57,5.1408]
[1739333081681,4.451e-05,194.58,194.57,5.1408]
[1739333082081,4.451e-05,194.58,194.55,22.82935896]
[1739333082082,1.6042,194.69,194.55,22.82935896]
[1739333082389,6.7421,194.69,194.59,22.82935896]
[1739333082590,1.6042,194.69,194.59,22.82935896]
[1739333083190,0.03496198,194.66,194.63,5.1392]
[1739333083790,5.1387,194.65,194.62,0.03274349]
[1739333083983,0.03496198,194.66,194.62,0.03274349]
[1739333084491,5.1392,194.63,194.62,0.03274349]
[1739333086192,0.03496198,194.66,194.62,0.03274349]
[1739333086496,5.1388,194.65,194.62,0.03274349]
[1739333086896,0.03496198,194.66,194.62,0.03274349]
[1739333087890,0.03496198,194.66,194.65,5.1387]
[1739333088481,1.4718,194.75,194.62,22.86210245]
[1739333088686,5.1363,194.74,194.68,5.1377]
[1739333088993,1.4718,194.75,194.68,5.1377]
[1739333089294,7.9118,194.75,194.68,5.1377]
[1739333089493,5.1363,194.74,194.69,5.1376]
[1739333089688,0.03720041,194.73,194.7,0.03272346]
[1739333089885,0.03720041,194.73,194.62,22.82935896]
[1739333090090,0.03720041,194.73,194.66,0.03238072]
[1739333091293,5.137,194.72,194.67,5.1381]
[1739333091888,0.03720041,194.73,194.66,0.03238072]
[1739333092493,5.1369,194.72,194.67,5.1379]
[1739333093386,5.17380041,194.73,194.68,5.1378]
[1739333093986,0.03720041,194.73,194.69,5.1374]
[1739333094192,0.03720041,194.73,194.66,0.03238072]
[1739333095099,0.03720041,194.73,194.67,22.82935896]
[1739333096290,0.03720041,194.73,194.66,0.03238072]
[1739333096887,5.1368,194.72,194.67,5.1381]
[1739333097094,0.03720041,194.73,194.66,0.03238072]
[1739333097790,5.17380041,194.73,194.68,5.1377]
[1739333098392,0.03720041,194.73,194.68,5.1377]
[1739333098592,5.1369,194.72,194.68,5.1377]
[1739333098792,5.1369,194.72,194.67,5.1381]
[1739333099699,11.5769,194.72,194.67,5.1381]
[1739333100100,11.5769,194.72,194.66,0.03238072]
[1739333100300,6.44,194.72,194.66,0.03238072]
[1739333100797,6.44,194.72,194.71,5.1371]
[1739333101097,0.03720041,194.73,194.71,5.1371]
[1739333101299,0.03720041,194.73,194.68,22.82935896]
[1739333101599,0.03720041,194.73,194.72,5.1368]
[1739333101797,0.03720041,194.73,194.66,14.24417641]
[1739333101992,14.24417641,194.79,194.71,0.03311903]
[1739333102192,5.1368,194.72,194.71,0.03311903]
[1739333103201,14.24417641,194.73,194.63,14.24417641]
[1739333103500,14.24417641,194.73,194.6,17.37177641]
[1739333103697,14.24417641,194.73,194.63,14.24417641]
[1739333103902,5.1369,194.72,194.68,5.1378]
[1739333104103,5.1369,194.72,194.63,14.24417641]
[1739333104300,0.03616732,194.69,194.66,0.03663953]
[1739333104502,0.03616732,194.69,194.66,14.28081594]
[1739333104997,0.03616732,194.69,194.68,5.1379]
[1739333105596,6.732e-05,194.69,194.68,5.1379]
[1739333107501,6.43,194.79,194.66,22.83000511]
[1739333107704,6.43,194.79,194.75,5.1359]
[1739333107900,6.43,194.79,194.71,22.79336558]
[1739333108703,0.03721455,194.77,194.73,0.0364678]
[1739333109702,0.03721455,194.77,194.76,5.1358]
[1739333110603,8.2795,194.85,194.79,5.1349]
[1739333110805,3.1459,194.85,194.74,22.79336558]
[1739333111007,5.1332,194.86,194.77,22.79336558]
[1739333111508,6.43,194.86,194.77,22.79336558]
[1739333111697,0.03401449,194.83,194.8,0.03449494]
[1739333111900,5.1342,194.82,194.8,0.03449494]
[1739333112106,5.1342,194.82,194.79,0.03537856]
[1739333112305,0.03401449,194.83,194.79,0.03537856]
[1739333112504,5.1347,194.8,194.79,0.03537856]
[1739333113107,5.1344,194.82,194.79,0.03537856]
[1739333113305,0.03401449,194.83,194.79,0.03537856]
[1739333114313,5.1344,194.82,194.79,0.03537856]
[1739333114611,0.03401449,194.83,194.79,0.03537856]
[1739333114810,0.03401449,194.83,194.8,5.1346]
[1739333115911,0.03401449,194.83,194.79,0.03537856]
[1739333116411,0.03401449,194.83,194.8,5.1345]
[1739333116610,0.03401449,194.83,194.79,0.03537856]
[1739333118013,0.03401449,194.83,194.81,5.1344]
[1739333119012,0.03401449,194.83,194.82,5.1342]
[1739333119805,6.46401449,194.83,194.82,5.1342]
[1739333120113,6.46401449,194.83,194.79,0.03537856]
[1739333120512,6.46401449,194.83,194.79,5.17027856]
[1739333121011,5.1342,194.82,194.79,0.03537856]
[1739333121215,6.46401449,194.83,194.79,0.03537856]
[1739333121711,5.1344,194.82,194.79,0.03537856]
[1739333122405,11.59791449,194.83,194.79,0.03537856]
[1739333122707,6.46401449,194.83,194.79,0.03537856]
[1739333123516,11.59801449,194.83,194.79,0.03537856]
[1739333123718,6.46401449,194.83,194.79,0.03537856]
[1739333124813,5.1347,194.8,194.79,0.03537856]
[1739333125417,5.1351,194.79,194.72,5.1367]
[1739333125621,1.5552,194.81,194.71,14.24156383]
[1739333125816,15.79676383,194.81,194.71,14.24156383]
[1739333126115,15.79676383,194.81,194.7,5.1373]
[1739333126618,0.0348402,194.77,194.74,0.03541409]
[1739333127218,5.1358,194.76,194.74,0.03541409]
[1739333127421,0.0348402,194.77,194.74,0.03541409]
[1739333128718,0.0348402,194.77,194.74,5.17171409]
[1739333128919,6.4648402,194.77,194.74,0.03541409]
[1739333129123,6.4648402,194.77,194.76,5.1358]
[1739333129818,1.514,194.86,194.74,14.27697792]
[1739333130019,1.585,194.89,194.78,14.24156383]
[1739333130222,1.585,194.89,194.81,14.24156383]
[1739333130416,1.585,194.89,194.82,5.1341]
[1739333130815,1.585,194.89,194.84,0.03744447]
[1739333131022,0.03653227,194.87,194.84,0.03744447]
[1739333131919,5.1334,194.85,194.84,0.03744447]
[1739333132911,0.03653227,194.87,194.84,0.03744447]
[1739333132912,5.1332,194.86,194.84,0.03744447]
[1739333133120,0.03653227,194.87,194.84,0.03744447]
[1739333133319,5.1334,194.85,194.84,0.03744447]
[1739333134323,5.134,194.83,194.75,22.76600979]
[1739333134524,1.585,194.89,194.75,22.76600979]
[1739333135027,5.1342,194.83,194.75,22.76600979]
[1739333135623,0.03393563,194.81,194.77,0.03498778]
[1739333135829,0.03393563,194.81,194.78,5.1352]
[1739333136221,0.03393563,194.81,194.77,0.03498778]
[1739333137526,0.03393563,194.81,194.8,5.1347]
[1739333138919,3.563e-05,194.81,194.8,5.1347]
[1739333139426,1.585,194.89,194.84,5.1336]
[1739333139727,1.585,194.89,194.79,22.76600979]
[1739333139920,6.7176,194.89,194.79,22.76600979]
[1739333140627,0.03901798,194.86,194.82,0.03433775]
[1739333141023,0.03901798,194.86,194.82,22.80034754]
[1739333141231,1.6118,194.96,194.9,5.1318]
[1739333141424,6.7424,194.96,194.88,22.76600979]
[1739333141630,1.6118,194.96,194.88,22.76600979]
[1739333141830,1.6118,194.96,194.91,5.1318]
[1739333142228,1.6118,194.96,194.85,22.76600979]
[1739333142424,0.03651569,194.95,194.92,0.03481413]
[1739333144330,0.03651569,194.95,194.83,3.0556]
[1739333144331,0.03651569,194.95,194.83,1.5599]
[1739333144729,1.6118,194.96,194.83,1.5599]
[1739333144730,5.1312,194.94,194.87,5.1327]
[1739333144930,1.6118,194.96,194.83,1.5599]
[1739333145229,1.6118,194.96,194.87,22.76600979]
[1739333145428,0.03715993,194.91,194.88,0.03727407]
[1739333146031,5.1322,194.9,194.88,0.03727407]
[1739333146233,0.03715993,194.91,194.88,0.03727407]
[1739333146629,5.1323,194.89,194.88,0.03727407]
[1739333147136,5.1321,194.9,194.88,0.03727407]
[1739333147937,5.1323,194.89,194.88,0.03727407]
[1739333148332,5.1332,194.86,194.79,22.76600979]
[1739333148838,5.1329,194.87,194.79,22.76600979]
[1739333149041,1.5802,194.9,194.79,22.76600979]
[1739333149539,0.03874952,194.86,194.83,0.03500326]
[1739333150840,5.1337,194.84,194.83,0.03500326]
[1739333153442,5.1342,194.82,194.73,22.76600979]
[1739333153643,5.1342,194.82,194.75,115.87605286]
[1739333154440,1.6053,194.85,194.75,115.87605286]
[1739333154645,0.0344008,194.8,194.77,0.03665525]
[1739333158453,5.1352,194.78,194.77,0.03665525]
[1739333162858,3.0926,194.79,194.69,14.23605286]
[1739333163059,3.0926,194.79,194.66,14.23605286]
[1739333163359,5.1369,194.72,194.66,14.23605286]
[1739333163561,14.23605286,194.78,194.66,14.23605286]
[1739333163856,1.5487,194.77,194.68,5.1379]
[1739333164057,0.03860125,194.74,194.7,0.03492912]
[1739333165259,0.03860125,194.74,194.63,14.23605286]
[1739333165454,14.23605286,194.72,194.64,5.1389]
[1739333165655,5.1381,194.68,194.6,14.23605286]
[1739333165856,14.23605286,194.72,194.6,14.23605286]
[1739333166058,14.23605286,194.72,194.62,5.1395]
[1739333166252,5.17573522,194.68,194.64,0.03698882]
[1739333166457,0.03783522,194.68,194.64,0.03698882]
[1739333166653,0.03783522,194.68,194.65,5.1386]
[1739333166857,5.1381,194.67,194.64,0.03698882]
[1739333167061,0.03783522,194.68,194.64,0.03698882]
[1739333167359,1.52213522,194.68,194.64,0.03698882]
[1739333167562,1.52213522,194.68,194.54,14.23605286]
[1739333167959,1.4843,194.68,194.54,14.23605286]
[1739333168158,5.1393,194.63,194.57,5.1408]
[1739333168553,14.23605286,194.66,194.57,5.1408]
[1739333168765,0.03611123,194.62,194.58,0.03757536]
[1739333169061,0.03611123,194.62,194.58,5.17797536]
[1739333169460,0.03611123,194.62,194.58,0.03757536]
[1739333170265,5.1401,194.6,194.58,0.03757536]
[1739333170863,5.1403,194.59,194.58,0.03757536]
[1739333171066,0.03611123,194.62,194.58,0.03757536]
[1739333171962,5.17581123,194.62,194.58,0.03757536]
[1739333172163,0.03611123,194.62,194.58,0.03757536]
[1739333172663,5.17561123,194.62,194.58,0.03757536]
[1739333173657,0.03611123,194.62,194.58,0.03757536]
[1739333174962,0.03611123,194.62,194.61,5.1397]
[1739333175664,0.03611123,194.62,194.6,5.1399]
[1739333176568,0.03611123,194.62,194.58,0.03757536]
[1739333177467,5.1402,194.6,194.58,0.03757536]
[1739333177968,5.1398,194.61,194.58,0.03757536]
[1739333178261,0.03611123,194.62,194.58,0.03757536]
[1739333179667,0.03611123,194.62,194.61,5.1397]
[1739333181270,0.03611123,194.62,194.58,0.03757536]
[1739333181673,0.03611123,194.62,194.61,5.1397]
[1739333182272,1.5279,194.73,194.6,22.82105176]
[1739333183274,5.1375,194.7,194.6,22.82105176]
[1739333183476,0.03274399,194.68,194.65,0.03528092]
[1739333185968,0.03274399,194.68,194.65,5.17368092]
[1739333186477,0.03274399,194.68,194.65,0.03528092]
[1739333188872,0.03274399,194.68,194.66,5.1384]
[1739333189077,0.03274399,194.68,194.65,0.03528092]
[1739333189680,0.03274399,194.68,194.67,5.1381]
[1739333191580,4.399e-05,194.68,194.67,5.1381]
[1739333194878,4.399e-05,194.68,194.65,5.17398092]
[1739333195080,4.399e-05,194.68,194.65,0.03528092]
[1739333195286,5.1382,194.67,194.65,0.03528092]
[1739333196183,4.399e-05,194.68,194.65,0.03528092]
[1739333196783,4.399e-05,194.68,194.67,5.1381]
[1739333197885,4.399e-05,194.68,194.65,0.03528092]
[1739333198486,5.1384,194.67,194.65,0.03528092]
[1739333199483,4.399e-05,194.68,194.65,0.03528092]
[1739333199679,5.1384,194.66,194.65,0.03528092]
[1739333199880,4.399e-05,194.68,194.54,22.82105176]
[1739333200083,3.1237,194.67,194.51,22.82105176]
[1739333200289,5.14,194.61,194.51,22.82105176]
[1739333200490,3.1237,194.67,194.51,22.82105176]
[1739333200687,5.1387,194.65,194.6,5.1399]
[1739333200887,3.1237,194.67,194.54,22.82105176]
[1739333201088,0.03397871,194.64,194.61,0.03340352]
[1739333202188,5.1395,194.62,194.61,0.03340352]
[1739333207290,0.03397871,194.64,194.53,14.26844464]
[1739333207493,14.26844464,194.65,194.53,14.26844464]
[1739333207789,14.26844464,194.65,194.5,14.26844464]
[1739333208186,5.1411,194.56,194.52,5.142]
[1739333208590,5.18060047,194.56,194.52,5.17739707]
[1739333210188,5.1418,194.53,194.52,0.03539707]
[1739333217001,0.03950047,194.56,194.52,0.03539707]
[1739333217199,5.1414,194.55,194.52,0.03539707]
[1739333217696,5.1418,194.54,194.52,0.03539707]
[1739333217901,0.03950047,194.56,194.52,0.03539707]
[1739333218099,14.30794511,194.56,194.52,0.03539707]
[1739333219800,14.30794511,194.56,194.44,14.26844464]
[1739333220100,14.26844464,194.5,194.38,14.26844464]
[1739333220296,5.1442,194.45,194.41,5.1449]
[1739333220501,5.1442,194.45,194.38,14.26844464]
[1739333220899,5.1442,194.45,194.4,5.1453]
[1739333221099,0.0378683,194.43,194.4,5.1453]
[1739333221799,0.0378683,194.43,194.38,14.26844464]
[1739333224806,0.0378683,194.43,194.4,5.1453]
[1739333227104,0.0378683,194.43,194.35,14.26844464]
[1739333227304,0.0378683,194.43,194.33,40.72232141]
[1739333227502,0.0378683,194.43,194.32,14.26844464]
[1739333227907,5.145,194.42,194.36,5.1463]
[1739333228103,5.145,194.42,194.32,14.26844464]
[1739333228503,5.145,194.42,194.37,5.1459]
[1739333228709,0.0368411,194.39,194.37,5.1459]
[1739333230005,0.0368411,194.39,194.32,14.26844464]
[1739333231208,0.0368411,194.39,194.37,5.146]
[1739333232209,0.0368411,194.39,194.32,14.26844464]
[1739333232210,0.0368411,194.39,194.38,5.1458]
[1739333234510,0.0368411,194.39,194.36,5.1461]
[1739333234707,0.0368411,194.39,194.32,14.26844464]
[1739333235109,0.0368411,194.39,194.29,14.26844464]
[1739333235302,4.8044,194.4,194.29,14.26844464]
[1739333235503,0.03446223,194.36,194.29,14.26844464]
[1739333235706,0.03446223,194.36,194.31,5.1476]
[1739333235911,0.03446223,194.36,194.23,14.26844464]
[1739333235912,14.26844464,194.35,194.23,14.26844464]
[1739333236308,0.03438506,194.31,194.25,5.1492]
[1739333236711,0.03438506,194.31,194.23,14.26844464]
[1739333237112,0.03438506,194.31,194.2,14.26844464]
[1739333237314,14.26844464,194.33,194.2,14.26844464]
[1739333237513,0.03395105,194.27,194.21,5.1503]
[1739333237713,0.03395105,194.27,194.2,14.26844464]
[1739333238312,0.03395105,194.27,194.18,1.532]
[1739333238508,14.26844464,194.24,194.13,5.1524]
[1739333239112,0.03591001,194.2,194.14,14.26844464]
[1739333239714,0.03591001,194.2,194.17,14.26844464]
[1739333240216,0.03591001,194.2,194.19,5.1508]
[1739333241512,0.03591001,194.2,194.17,14.26844464]
[1739333241720,0.03591001,194.2,194.15,5.1517]
[1739333242115,14.26844464,194.25,194.15,5.1517]
[1739333242321,0.03432563,194.19,194.13,19.42064464]
[1739333242617,0.03432563,194.19,194.13,14.26844464]
[1739333243018,0.03432563,194.19,194.14,5.152]
[1739333243719,5.1512,194.18,194.1,14.26844464]
[1739333244318,0.03432563,194.19,194.1,14.26844464]
[1739333244617,0.03432563,194.19,194.13,14.26844464]
[1739333244915,19.41714464,194.28,194.16,14.26844464]
[1739333245116,15.84774464,194.31,194.19,14.26844464]
[1739333245318,14.26844464,194.34,194.22,14.26844464]
[1739333245820,1.624,194.35,194.22,14.26844464]
[1739333245821,1.5722,194.38,194.28,14.26844464]
[1739333246021,6.7183,194.38,194.31,5.1477]
[1739333246222,0.03318695,194.35,194.31,5.18086181]
[1739333246423,0.03318695,194.35,194.31,0.03316181]
[1739333248922,5.17998695,194.35,194.31,0.03316181]
[1739333249228,0.03318695,194.35,194.31,0.03316181]
[1739333249416,0.03318695,194.35,194.33,5.1471]
[1739333249622,0.03318695,194.35,194.31,0.03316181]
[1739333250014,0.03318695,194.35,194.32,5.1473]
[1739333250319,0.03318695,194.35,194.31,0.03316181]
[1739333252123,0.03318695,194.35,194.34,5.1469]
[1739333252524,0.03318695,194.35,194.31,0.03316181]
[1739333252723,0.03318695,194.35,194.31,5.18056181]
[1739333253324,0.03318695,194.35,194.31,0.03316181]
[1739333254022,5.1469,194.34,194.31,0.03316181]
[1739333254223,0.03318695,194.35,194.31,0.03316181]
[1739333256926,0.03318695,194.35,194.32,5.1474]
[1739333257527,0.03318695,194.35,194.31,0.03316181]
[1739333257924,0.03318695,194.35,194.34,5.1469]
[1739333258128,0.03318695,194.35,194.31,0.03316181]
[1739333258534,5.17998695,194.35,194.31,0.03316181]
[1739333258931,0.03318695,194.35,194.31,0.03316181]
[1739333259233,0.03318695,194.35,194.34,5.1469]
[1739333259732,0.03318695,194.35,194.31,0.03316181]
[1739333260231,5.1469,194.34,194.31,0.03316181]
[1739333260733,5.17978695,194.35,194.31,0.03316181]
[1739333260933,0.03318695,194.35,194.31,0.03316181]
[1739333262035,0.03318695,194.35,194.32,5.1472]
[1739333262433,0.03318695,194.35,194.31,0.03316181]
[1739333263738,5.1469,194.34,194.31,0.03316181]
[1739333265243,0.03318695,194.35,194.31,0.03316181]
[1739333265837,5.1474,194.32,194.31,0.03316181]
[1739333266037,0.03318695,194.35,194.19,22.89528466]
[1739333266038,1.6269,194.34,194.19,22.89528466]
[1739333266836,1.6269,194.34,194.25,5.1492]
[1739333267036,1.6269,194.34,194.19,22.89528466]
[1739333267236,0.03873734,194.31,194.19,22.89528466]
[1739333267437,1.6269,194.34,194.19,22.89528466]
[1739333267639,0.03941144,194.27,194.2,14.3155832]
[1739333268146,0.03941144,194.27,194.25,5.1492]
[1739333268440,0.03941144,194.27,194.2,14.3155832]
[1739333271943,0.03941144,194.27,194.23,5.1498]
[1739333272543,0.03941144,194.27,194.22,5.15]
[1739333272842,0.03941144,194.27,194.2,14.3155832]
[1739333273247,0.03941144,194.27,194.22,5.15]
[1739333273445,0.03941144,194.27,194.2,14.3155832]
[1739333274248,0.03941144,194.27,194.23,5.1495]
[1739333274550,0.03941144,194.27,194.2,14.3155832]
[1739333274843,0.03941144,194.27,194.26,5.149]
[1739333275043,1.6269,194.34,194.26,5.149]
[1739333275248,0.03323443,194.28,194.26,5.149]
[1739333275453,1.6269,194.34,194.24,5.1493]
[1739333275644,0.03672729,194.29,194.23,14.3155832]
[1739333276040,0.03672729,194.29,194.2,14.3155832]
[1739333276342,14.3155832,194.33,194.23,5.1497]
[1739333276550,0.0344143,194.26,194.23,5.1497]
[1739333276846,14.3155832,194.33,194.23,5.1497]
[1739333277348,5.1487,194.28,194.23,5.1497]
[1739333277546,14.35081597,194.3,194.17,14.3155832]
[1739333277745,14.3155832,194.27,194.15,4.41]
[1739333277951,0.03327496,194.25,194.15,4.41]
[1739333278146,5.15,194.23,194.17,5.1514]
[1739333278645,5.15,194.23,194.15,3.1868]
[1739333279148,0.03762523,194.21,194.15,3.1868]
[1739333279550,0.03762523,194.21,194.19,5.1507]
[1739333280046,0.03762523,194.21,194.2,5.1506]
[1739333280849,0.03762523,194.21,194.2,19.4661832]
[1739333281152,5.149,194.27,194.22,5.15]
[1739333281348,2.9998,194.29,194.2,14.3155832]
[1739333281648,2.9998,194.29,194.18,5.1511]
[1739333281850,2.9998,194.29,194.17,14.3155832]
[1739333282250,0.03494011,194.25,194.21,0.0326126]
[1739333282554,5.1497,194.24,194.21,0.0326126]
[1739333283148,5.18424011,194.25,194.21,0.0326126]
[1739333284247,0.03494011,194.25,194.21,0.0326126]
[1739333284854,0.03494011,194.25,194.24,5.1495]
[1739333285049,195.0,194.33,194.23,14.3155832]
[1739333285649,5.1475,194.32,194.27,5.1485]
[1739333286250,195.0,194.33,194.28,0.03618608]
[1739333286251,0.03877512,194.31,194.28,0.03618608]
[1739333287852,0.03877512,194.31,194.28,5.18448608]
[1739333288758,0.03877512,194.31,194.29,5.1482]
[1739333288961,0.03877512,194.31,194.28,0.03618608]
[1739333293054,14.3155832,194.29,194.14,14.3155832]
[1739333293457,1.5399,194.28,194.14,14.3155832]
[1739333293756,1.5399,194.28,194.2,14.3155832]
[1739333293957,1.4805,194.3,194.2,14.3155832]
[1739333294154,0.03849082,194.26,194.22,0.03544977]
[1739333295658,0.03849082,194.26,194.23,5.1497]
[1739333295860,0.03849082,194.26,194.22,0.03544977]
[1739333296161,0.03849082,194.26,194.23,14.3155832]
[1739333296460,0.03849082,194.26,194.25,5.1493]
[1739333300165,0.03849082,194.26,194.23,14.3155832]
[1739333300661,0.03849082,194.26,194.25,5.1493]
[1739333301559,5.1472,194.33,194.28,5.1484]
[1739333301862,1.5873,194.37,194.32,9.15577396]
[1739333302054,1.5873,194.37,194.34,9.15577396]
[1739333302756,6.77158101,194.37,194.34,9.18900657]
[1739333302957,1.62548101,194.37,194.34,0.03323261]
[1739333303154,10.78125497,194.37,194.34,0.03323261]
[1739333303354,10.78125497,194.37,194.28,9.15577396]
[1739333303355,9.15577396,194.35,194.28,9.15577396]
[1739333303559,14.31085495,194.36,194.27,5.1486]
[1739333303767,5.1477,194.31,194.24,14.31085495]
[1739333304062,1.5873,194.37,194.3,5.1479]
[1739333304259,1.5873,194.37,194.27,14.31085495]
[1739333304454,1.5873,194.37,194.23,1.6261]
[1739333304455,0.03712024,194.35,194.32,0.03763956]
[1739333304659,0.03712024,194.35,194.32,5.1474]
[1739333304860,0.03712024,194.35,194.32,5.18221167]
[1739333306063,0.03712024,194.35,194.33,5.1471]
[1739333306758,0.03712024,194.35,194.32,5.18211167]
[1739333307363,0.03712024,194.35,194.32,0.03481167]
[1739333308269,0.03712024,194.35,194.33,5.1471]
[1739333308670,0.03712024,194.35,194.32,0.03481167]
[1739333308871,0.03712024,194.35,194.34,5.1469]
[1739333309469,0.03712024,194.35,194.33,14.31085495]
[1739333310270,0.03712024,194.35,194.34,5.1469]
[1739333310872,0.03712024,194.35,194.33,14.31085495]
[1739333311073,0.03712024,194.35,194.32,0.03481167]
[1739333311376,5.1469,194.34,194.32,0.03481167]
[1739333311565,0.03712024,194.35,194.32,0.03481167]
[1739333311970,5.1471,194.33,194.32,0.03481167]
[1739333313175,5.1483,194.29,194.24,19.46015495]
[1739333313377,5.1483,194.29,194.21,14.31085495]
[1739333313675,5.1485,194.28,194.22,5.1498]
[1739333314174,0.03885412,194.27,194.21,14.31085495]
[1739333315176,0.03885412,194.27,194.24,14.31085495]
[1739333315574,0.03885412,194.27,194.26,5.149]
[1739333316175,1.5916,194.35,194.24,14.31085495]
[1739333316478,3.1889,194.4,194.3,14.31085495]
[1739333317373,0.03462148,194.37,194.33,0.03919657]
[1739333318777,0.03462148,194.37,194.33,14.35005152]
[1739333319871,0.03462148,194.37,194.36,5.1463]
[1739333321977,0.03462148,194.37,194.36,19.45715495]
[1739333322686,0.03462148,194.37,194.36,14.31085495]
[1739333323383,0.03462148,194.37,194.36,19.45715495]
[1739333325182,1.6275,194.46,194.36,19.45715495]
[1739333325183,1.6275,194.46,194.42,5.1447]
[1739333325684,1.6275,194.46,194.39,14.31085495]
[1739333325984,5.144,194.45,194.4,5.1452]
[1739333326283,1.6275,194.46,194.39,14.31085495]